fUSD/lending_fUSD_20260203
["ID","MTS","AMOUNT","RATE_DAILY","PERIOD"]
[404437962,1770141041984,-500.0,0.00017,7]
[404437963,1770141041995,-500.0,0.00017,7]
[404437964,1770141042006,-500.0,0.00017,7]
[404437965,1770141042018,-500.0,0.00017,7]
[404437966,1770141042032,-500.0,0.00017,7]
[404437967,1770141042042,-500.0,0.00017,7]
[404437968,1770141042053,-500.0,0.00017,7]
[404437969,1770141042063,-500.0,0.00017,7]
[404437970,1770141042072,-500.0,0.00017,7]
[404437971,1770141042082,-500.0,0.00017,7]
[404437972,1770141042093,-500.0,0.00017,7]
[404437973,1770141042104,-500.0,0.00017,7]
[404437974,1770141042113,-500.0,0.00017,7]
[404437975,1770141042121,-500.0,0.00017,7]
[404437976,1770141042130,-500.0,0.00017,7]
[404437977,1770141042140,-500.0,0.00017,7]
[404437978,1770141042150,-500.0,0.00017,7]
[404437979,1770141042159,-500.0,0.00017,7]
[404437980,1770141042168,-500.0,0.00017,7]
[404437981,1770141042176,-404.8,0.00017,7]
[404437982,1770141042185,-160.0,0.00017,7]
[404437983,1770141042194,-5000.0,0.00017,2]
[404437984,1770141042203,-500.0,0.00017,7]
[404437985,1770141042212,-500.0,0.00017,7]
[404437986,1770141042221,-500.0,0.00017,7]
[404437987,1770141042230,-500.0,0.00017,7]
[404437988,1770141042239,-500.0,0.00017,7]
[404437989,1770141042248,-500.0,0.00017,7]
[404437990,1770141042257,-500.0,0.00017,7]
[404437991,1770141042267,-500.0,0.00017,7]
[404437992,1770141042275,-500.0,0.00017,7]
[404437993,1770141042284,-500.0,0.00017,7]
[404437994,1770141042294,-500.0,0.00017,7]
[404437995,1770141042303,-500.0,0.00017,7]
[404437996,1770141042312,-500.0,0.00017,7]
[404437997,1770141042322,-500.0,0.00017,7]
[404437998,1770141042330,-500.0,0.00017,7]
[404437999,1770141042339,-500.0,0.00017,7]
[404438000,1770141042348,-500.0,0.00017,7]
[404438001,1770141042357,-500.0,0.00017,7]
[404438002,1770141042368,-500.0,0.00017,7]
[404438003,1770141042378,-500.0,0.00017,7]
[404438004,1770141042387,-500.0,0.00017,7]
[404438005,1770141042397,-500.0,0.00017,7]
[404438006,1770141042406,-500.0,0.00017,7]
[404438007,1770141042416,-500.0,0.00017,7]
[404438008,1770141042426,-500.0,0.00017,7]
[404438009,1770141042435,-500.0,0.00017,7]
[404438010,1770141042444,-500.0,0.00017,7]
[404438011,1770141042453,-500.0,0.00017,7]
[404438012,1770141042462,-500.0,0.00017,7]
[404438013,1770141042471,-500.0,0.00017,7]
[404438014,1770141042480,-500.0,0.00017,7]
[404438015,1770141042489,-500.0,0.00017,7]
[404438016,1770141042498,-500.0,0.00017,7]
[404438017,1770141042507,-500.0,0.00017,7]
[404438018,1770141042517,-500.0,0.00017,7]
[404438019,1770141042527,-500.0,0.00017,7]
[404438020,1770141042537,-166.51,0.00017,7]
[404438021,1770141042547,-500.0,0.00017,7]
[404438022,1770141042555,-500.0,0.00017,7]
[404438023,1770141042567,-500.0,0.00017,7]
[404438024,1770141042577,-500.0,0.00017,7]
[404438025,1770141042587,-300.0,0.00017,2]
[404438026,1770141042597,-1000.0,0.00017112,2]
[404438027,1770141042606,-5888.0,0.00017155,2]
[404438028,1770141042616,-200.0,0.00017174,2]
[404438029,1770141042627,-359.76179104,0.00017224,2]
[404438030,1770141042637,-1000.0,0.0001726,2]
[404438031,1770141042647,-839.0,0.00017452,2]
[404438032,1770141042661,-5888.0,0.00017483,2]
[404438033,1770141042671,-160.0,0.000175,7]
[404438034,1770141042681,-2000.0,0.000175,2]
[404438035,1770141042691,-1900.0,0.000175,6]
[404438036,1770141042701,-200.0,0.00017501,2]
[404438037,1770141042710,-233.51889341,0.00017501,2]
[404438038,1770141042720,-5888.0,0.0001751,2]
[404438039,1770141042730,-1000.0,0.00017534,2]
[404438040,1770141042741,-1900.0,0.000176,6]
[404438041,1770141042751,-163.0,0.00017635,2]
[404438042,1770141042760,-251.0,0.0001768,2]
[404438043,1770141042770,-915.0,0.0001768,2]
[404438044,1770141042780,-2000.0,0.000177,2]
[404438045,1770141042790,-1900.0,0.000177,6]
[404438046,1770141042801,-1000.0,0.00017709,2]
[404438047,1770141042811,-150.0,0.00017712,2]
[404438048,1770141042820,-5888.0,0.00017715,2]
[404438050,1770141042829,-150.0,0.00017739,2]
[404438051,1770141042839,-1000.0,0.0001774,2]
[404438052,1770141042848,-1000.0,0.00017745,2]
[404438053,1770141042856,-1000.0,0.00017761,2]
[404438054,1770141042865,-1000.0,0.00017776,2]
[404438055,1770141042875,-191476.16364278,0.00017778,2]
[404438056,1770141043396,-15100.0,0.00017778,2]
[404438057,1770141043413,-2659.561022,0.00017778,2]
[404438058,1770141043435,-13137.06025323,0.00017778,2]
[404438059,1770141043449,-177003.45088119,0.00017778,2]
[404438060,1770141043458,-150.0,0.00017779,2]
[404438061,1770141043467,-930.52052436,0.00017782,2]
[404438062,1770141043475,-983.42551089,0.0001779,2]
[404438063,1770141043483,-200.0,0.00017796,2]
[404438064,1770141043493,-1004.24833384,0.00017799,5]
[404438065,1770141043502,-1004.24833384,0.00017799,5]
[404438066,1770141043513,-200.0,0.000178,2]
[404438067,1770141043523,-200.0,0.000178,2]
[404438068,1770141043533,-1000.0,0.000178,2]
[404438069,1770141043542,-200.0,0.000178,2]
[404438070,1770141043552,-1390.33238812,0.000178,2]
[404438071,1770141043567,-177.18689156,0.000178,2]
[404438072,1770141043576,-2000.0,0.000178,2]
[404438073,1770141043585,-200.0,0.000178,2]
[404438074,1770141043595,-159.0,0.000178,2]
[404438075,1770141043606,-1900.0,0.000178,6]
[404438076,1770141043615,-1000.0,0.00017802,2]
[404438077,1770141043624,-1000.0,0.00017808,2]
[404438078,1770141043635,-250.0,0.00017808,5]
[404438079,1770141043644,-250.0,0.00017808,5]
[404438085,1770141043873,-250.0,0.00017808,5]
[404438086,1770141043883,-250.0,0.00017808,5]
[404438087,1770141043893,-250.0,0.00017808,5]
[404438088,1770141043906,-318.936746,0.00017808,5]
[404438089,1770141043917,-1000.0,0.00017818,2]
[404438090,1770141043927,-3764.4246687,0.0001782,10]
[404438091,1770141043937,-2000.0,0.0001782,2]
[404438092,1770141043947,-2000.0,0.0001782,2]
[404438093,1770141043955,-18928.0,0.00017833,2]
[404438094,1770141043964,-168.0,0.00017837,2]
[404438095,1770141043973,-1000.0,0.00017838,2]
[404438096,1770141043986,-1000.0,0.00017839,7]
[404438097,1770141043996,-1000.0,0.00017843,2]
[404438098,1770141044007,-150.0,0.00017849,2]
[404438099,1770141044016,-150.0,0.00017853,2]
[404438100,1770141044027,-200.0,0.00017855,2]
[404438101,1770141044036,-200.0,0.00017856,2]
[404438102,1770141044045,-1000.0,0.0001786,2]
[404438103,1770141044055,-150.0,0.00017865,2]
[404438104,1770141044064,-1000.0,0.00017868,2]
[404438105,1770141044072,-150.0,0.00017871,2]
[404438106,1770141044082,-157.95285948,0.0001789,2]
[404438107,1770141044092,-150.0,0.00017894,2]
[404438108,1770141044101,-25000.0,0.000179,3]
[404438109,1770141044110,-5000.0,0.000179,2]
[404438110,1770141044119,-10140.7131,0.000179,2]
[404438111,1770141044128,-12478.67792849,0.000179,3]
[404438112,1770141044138,-25000.0,0.000179,3]
[404438113,1770141044147,-160.0,0.000179,3]
[404438114,1770141044163,-179.39452399,0.000179,2]
[404438115,1770141044174,-2000.0,0.000179,2]
[404438116,1770141044184,-3008.74402367,0.000179,2]
[404438117,1770141044194,-2354.0,0.000179,6]
[404438118,1770141044203,-407.50767087,0.000179,2]
[404438119,1770141044213,-200.09687648,0.000179,2]
[404438120,1770141044222,-1024.01861174,0.000179,2]
[404438121,1770141044231,-500.0,0.000179,2]
[404438122,1770141044241,-500.0,0.000179,2]
[404438123,1770141044251,-500.0,0.000179,2]
[404438124,1770141044260,-500.0,0.000179,2]
[404438125,1770141044269,-500.0,0.000179,2]
[404438126,1770141044278,-500.0,0.000179,2]
[404438127,1770141044287,-500.0,0.000179,2]
[404438128,1770141044297,-500.0,0.000179,2]
[404438129,1770141044306,-500.0,0.000179,2]
[404438130,1770141044316,-500.0,0.000179,2]
[404438131,1770141044326,-1000.0,0.00017924,2]
[404438132,1770141044335,-1000.0,0.00017928,2]
[404438133,1770141044345,-200.0,0.00017929,2]
[404438134,1770141044354,-1000.0,0.00017938,2]
[404438135,1770141044364,-1000.0,0.00017954,2]
[404438136,1770141044372,-1503.0,0.0001796,2]
[404438137,1770141044383,-151.0,0.0001796,2]
[404438138,1770141044392,-1503.0,0.0001796,2]
[404438139,1770141044402,-151.0,0.0001796,2]
[404438140,1770141044412,-159.33592383,0.0001796,2]
[404438141,1770141044421,-153.0,0.0001796,2]
[404438142,1770141044430,-1503.0,0.0001796,2]
[404438143,1770141044440,-151.0,0.0001796,2]
[404438144,1770141044449,-1503.0,0.0001796,2]
[404438145,1770141044459,-151.0,0.0001796,2]
[404438146,1770141044468,-153.0,0.0001796,2]
[404438147,1770141044477,-1503.0,0.0001796,2]
[404438148,1770141044487,-151.0,0.0001796,2]
[404438149,1770141044495,-153.0,0.0001796,2]
[404438150,1770141044504,-1503.0,0.0001796,2]
[404438151,1770141044514,-153.0,0.0001796,2]
[404438152,1770141044523,-1503.0,0.0001796,2]
[404438153,1770141044533,-151.0,0.0001796,2]
[404438154,1770141044543,-153.0,0.0001796,2]
[404438155,1770141044554,-1503.0,0.0001796,2]
[404438156,1770141044567,-151.0,0.0001796,2]
[404438157,1770141044578,-153.0,0.0001796,2]
[404438158,1770141044587,-1503.0,0.0001796,2]
[404438159,1770141044598,-153.0,0.0001796,2]
[404438160,1770141044607,-1503.0,0.0001796,2]
[404438161,1770141044616,-153.0,0.0001796,2]
[404438162,1770141044625,-1503.0,0.0001796,2]
[404438163,1770141044635,-153.0,0.0001796,2]
[404438164,1770141044645,-1503.0,0.0001796,2]
[404438165,1770141044659,-151.0,0.0001796,2]
[404438166,1770141044669,-153.0,0.0001796,2]
[404438167,1770141044678,-1503.0,0.0001796,2]
[404438168,1770141044687,-151.0,0.0001796,2]
[404438169,1770141044696,-153.0,0.0001796,2]
[404438170,1770141044705,-1503.0,0.0001796,2]
[404438171,1770141044714,-151.0,0.0001796,2]
[404438172,1770141044724,-153.0,0.0001796,2]
[404438173,1770141044732,-1503.0,0.0001796,2]
[404438174,1770141044741,-153.0,0.0001796,2]
[404438175,1770141044751,-1503.0,0.0001796,2]
[404438176,1770141044761,-151.0,0.0001796,2]
[404438177,1770141044769,-153.0,0.0001796,2]
[404438178,1770141044779,-153.0,0.0001796,2]
[404438179,1770141044789,-1503.0,0.0001796,2]
[404438181,1770141044798,-151.0,0.0001796,2]
[404438183,1770141044807,-153.0,0.0001796,2]
[404438185,1770141044816,-1503.0,0.0001796,2]
[404438187,1770141044825,-151.0,0.0001796,2]
[404438189,1770141044834,-153.0,0.0001796,2]
[404438190,1770141044844,-1503.0,0.0001796,2]
[404438192,1770141044855,-151.0,0.0001796,2]
[404438194,1770141044867,-153.0,0.0001796,2]
[404438195,1770141044875,-151.0,0.0001796,2]
[404438196,1770141044884,-153.0,0.0001796,2]
[404438197,1770141044893,-151.0,0.0001796,2]
[404438198,1770141044905,-153.0,0.0001796,2]
[404438199,1770141044915,-153.0,0.0001796,2]
[404438200,1770141044924,-151.0,0.0001796,2]
[404438201,1770141044933,-153.0,0.0001796,2]
[404438202,1770141044942,-151.0,0.0001796,2]
[404438203,1770141044951,-153.0,0.0001796,2]
[404438204,1770141044961,-1503.0,0.0001796,2]
[404438205,1770141044971,-151.0,0.0001796,2]
[404438206,1770141044981,-153.0,0.0001796,2]
[404438207,1770141044990,-1503.0,0.0001796,2]
[404438208,1770141044999,-153.0,0.0001796,2]
[404438209,1770141045009,-1503.0,0.0001796,2]
[404438210,1770141045021,-151.0,0.0001796,2]
[404438211,1770141045031,-153.0,0.0001796,2]
[404438212,1770141045040,-1503.0,0.0001796,2]
[404438213,1770141045049,-151.0,0.0001796,2]
[404438214,1770141045058,-153.0,0.0001796,2]
[404438215,1770141045068,-1503.0,0.0001796,2]
[404438216,1770141045077,-151.0,0.0001796,2]
[404438217,1770141045086,-1503.0,0.0001796,2]
[404438218,1770141045095,-153.0,0.0001796,2]
[404438219,1770141045107,-191.58690164,0.0001796,2]
[404438220,1770141045116,-1503.0,0.0001796,2]
[404438221,1770141045125,-153.0,0.0001796,2]
[404438222,1770141045135,-1503.0,0.0001796,2]
[404438223,1770141045144,-153.0,0.0001796,2]
[404438224,1770141045157,-1503.0,0.0001796,2]
[404438225,1770141045167,-153.0,0.0001796,2]
[404438226,1770141045177,-1503.0,0.0001796,2]
[404438227,1770141045187,-153.0,0.0001796,2]
[404438228,1770141045197,-1503.0,0.0001796,2]
[404438229,1770141045207,-153.0,0.0001796,2]
[404438230,1770141045215,-1503.0,0.0001796,2]
[404438231,1770141045223,-1000.0,0.00017964,2]
[404438232,1770141045232,-400.0,0.0001797,2]
[404438233,1770141045241,-400.7491143,0.0001797,2]
[404438234,1770141045251,-1000.0,0.00017971,2]
[404438235,1770141045260,-1000.0,0.00017972,2]
[404438236,1770141045269,-166.51015303,0.00017973,2]
[404438237,1770141045278,-500.0,0.00017973,2]
[404438238,1770141045288,-500.0,0.00017973,2]
[404438239,1770141045297,-500.55069623,0.00017973,2]
[404438240,1770141045306,-562.28195765,0.00017973,2]
[404438241,1770141045315,-500.0,0.00017973,2]
[404438242,1770141045324,-500.0,0.00017973,2]
[404438243,1770141045333,-500.0,0.00017973,2]
[404438244,1770141045342,-500.0,0.00017973,2]
[404438245,1770141045351,-500.0,0.00017973,2]
[404438246,1770141045360,-500.0,0.00017973,2]
[404438247,1770141045370,-151.0,0.00017977,2]
[404438248,1770141045380,-200.0,0.00017978,2]
[404438249,1770141045390,-200.0,0.00017978,2]
[404438250,1770141045401,-200.0,0.00017978,2]
[404438251,1770141045409,-200.0,0.00017978,2]
[404438252,1770141045419,-1968.0,0.00017978,2]
[404438253,1770141045428,-5888.0,0.00017979,2]
[404438254,1770141045436,-625.826,0.0001798,2]
[404438255,1770141045445,-3481.0,0.0001798,2]
[404438256,1770141045455,-1335.0,0.0001798,2]
[404438257,1770141045464,-1410.0,0.0001798,2]
[404438258,1770141045475,-150.0,0.0001798,2]
[404438259,1770141045486,-917.0,0.0001798,2]
[404438260,1770141045496,-1205.0,0.0001798,2]
[404438261,1770141045507,-1271.0,0.0001798,2]
[404438262,1770141045517,-6580.0,0.0001798,2]
[404438263,1770141045528,-2445.0,0.0001798,2]
[404438264,1770141045537,-607.877,0.0001798,2]
[404438265,1770141045546,-5888.0,0.00017981,2]
[404438266,1770141045556,-3359.99999999,0.0001799,3]
[404438267,1770141045569,-578.73215141,0.0001799,2]
[404438268,1770141045578,-150.0,0.00017997,2]
[404438269,1770141045588,-151.0,0.00017997,2]
[404438270,1770141045600,-1004.24833384,0.00017999,5]
[404438271,1770141045609,-1004.24833388,0.00017999,5]
[404438272,1770141045619,-300.0,0.00017999,2]
[404438273,1770141045629,-300.0,0.00017999,2]
[404438274,1770141045639,-666.0,0.00017999,2]
[404438276,1770141045648,-313.9472948,0.00017999,2]
[404438278,1770141045658,-180.33941038,0.00018,2]
[404438280,1770141045667,-6998763.34814085,0.00018,2]
[404438283,1770141045681,-751.0,0.00018,2]
[404438285,1770141045692,-378.165,0.00018,2]
[404438292,1770141045726,-7529.25,0.00018,2]
[404438332,1770141046132,-153.0,0.0001796,2]
[404438334,1770141046142,-209.7484,0.00018,2]
[404438335,1770141046155,-2600.75123146,0.00018,2]
[404438337,1770141046173,-7551.20434505,0.00018,2]
[404438352,1770141046397,-1668.51342935,0.00018,2]
[404438353,1770141046410,-7534.876644,0.00018,2]
[404438355,1770141046421,-24856.99490606,0.00018,2]
[404438357,1770141046432,-60116.21783305,0.00018,2]
[404438359,1770141046447,-288.63636112,0.00018,2]
[404438361,1770141046458,-204646.5829986,0.00018,2]
[404438362,1770141046474,-376.09715932,0.00018,2]
[404438363,1770141046485,-2719.21010191,0.00018,2]
[404438365,1770141046512,-1503.0,0.0001796,2]
[404438367,1770141046522,-6013.8,0.00018,2]
[404438375,1770141050078,-3500.01,6.996e-05,2]
[404438376,1770141050188,-1830.09208151,6.996e-05,2]
[404438377,1770141050211,-1339.82583698,6.996e-05,2]
[404438381,1770141095728,5000.01,6.659e-05,2]
[404438382,1770141095753,5000.01,6.659e-05,2]
[404438383,1770141095776,5000.01,6.659e-05,2]
[404438384,1770141095801,5000.01,6.659e-05,2]
[404438385,1770141095825,5000.01,6.659e-05,2]
[404438386,1770141095849,5000.01,6.659e-05,2]
[404438387,1770141095872,5000.01,6.659e-05,2]
[404438388,1770141095896,5000.01,6.659e-05,2]
[404438389,1770141095921,5000.01,6.659e-05,2]
[404438390,1770141095946,5000.01,6.659e-05,2]
[404438391,1770141095972,10000.01,6.659e-05,2]
[404438392,1770141095997,10000.01,6.659e-05,2]
[404438393,1770141096023,10000.01,6.659e-05,2]
[404438394,1770141096048,10000.01,6.659e-05,2]
[404438395,1770141096074,10000.01,6.659e-05,2]
[404438396,1770141096102,10000.01,6.659e-05,2]
[404438397,1770141096126,10000.01,6.659e-05,2]
[404438398,1770141096152,10000.01,6.659e-05,2]
[404438399,1770141096176,10000.01,6.659e-05,2]
[404438400,1770141096202,10000.01,6.659e-05,2]
[404438401,1770141098607,-5000.01,6.659e-05,2]
[404438402,1770141098735,-5000.01,6.659e-05,2]
[404438403,1770141098863,-5000.01,6.659e-05,2]
[404438404,1770141099019,-5000.01,6.659e-05,2]
[404438405,1770141099131,-5000.01,6.659e-05,2]
[404438407,1770141102465,-5000.01,6.659e-05,2]
[404438408,1770141102597,-5000.01,6.659e-05,2]
[404438409,1770141102986,-5000.01,6.659e-05,2]
[404438410,1770141103293,-5000.01,6.659e-05,2]
[404438411,1770141103400,-5000.01,6.659e-05,2]
[404438412,1770141103688,-5000.01,6.659e-05,2]
[404438413,1770141103839,-5000.01,6.659e-05,2]
[404438414,1770141103963,-5000.01,6.659e-05,2]
[404438415,1770141104081,-5000.01,6.659e-05,2]
[404438416,1770141104245,-5000.01,6.659e-05,2]
[404438417,1770141104351,-5000.01,6.659e-05,2]
[404438418,1770141104532,-5000.01,6.659e-05,2]
[404438419,1770141104666,-5000.01,6.659e-05,2]
[404438420,1770141104785,-5000.01,6.659e-05,2]
[404438421,1770141104910,-5000.01,6.659e-05,2]
[404438422,1770141108445,-5000.01,6.659e-05,2]
[404438423,1770141108547,-5000.01,6.659e-05,2]
[404438424,1770141108658,-5000.01,6.659e-05,2]
[404438425,1770141108764,-5000.01,6.659e-05,2]
[404438426,1770141108930,-5000.01,6.659e-05,2]
[404438427,1770141109082,-5000.01,6.659e-05,2]
[404438428,1770141109199,-5000.01,6.659e-05,2]
[404438429,1770141109323,-5000.01,6.659e-05,2]
[404438430,1770141109436,-5000.01,6.659e-05,2]
[404438431,1770141109549,-5000.01,6.659e-05,2]
[404438432,1770141109676,-5000.01,6.659e-05,2]
[404438433,1770141109792,-5000.01,6.659e-05,2]
[404438434,1770141109918,-5000.01,6.659e-05,2]
[404438435,1770141110048,-5000.01,6.659e-05,2]
[404438436,1770141110167,-5000.01,6.659e-05,2]
[404438437,1770141114296,-5712.24,6.659e-05,2]
[404438438,1770141114386,-10000.01,6.659e-05,2]
[404438439,1770141114512,-10000.01,6.659e-05,2]
[404438440,1770141114626,-10000.01,6.659e-05,2]
[404438441,1770141114791,-10000.01,6.659e-05,2]
[404438442,1770141114905,-10000.01,6.659e-05,2]
[404438443,1770141115062,-10000.01,6.659e-05,2]
[404438444,1770141115185,-10000.01,6.659e-05,2]
[404438445,1770141115302,-10000.01,6.659e-05,2]
[404438446,1770141115748,-10000.01,6.659e-05,2]
[404438447,1770141121585,300.0,6.658e-05,2]
[404438448,1770141122518,1004.24833384,6.658e-05,2]
[404438449,1770141122577,1004.24833384,6.658e-05,2]
[404438450,1770141124593,-10000.01,6.659e-05,2]
[404438451,1770141124713,-10000.01,6.659e-05,2]
[404438452,1770141124832,-10000.01,6.659e-05,2]
[404438453,1770141124969,-10000.01,6.659e-05,2]
[404438454,1770141125096,-10000.01,6.659e-05,2]
[404438455,1770141125327,-10000.01,6.659e-05,2]
[404438456,1770141125438,-10000.01,6.659e-05,2]
[404438457,1770141125594,-10000.01,6.659e-05,2]
[404438458,1770141126147,-10000.01,6.659e-05,2]
[404438459,1770141131806,-10000.01,6.659e-05,2]
[404438461,1770141138917,-10000.01,6.659e-05,2]
[404438462,1770141139227,-10000.01,6.659e-05,2]
[404438463,1770141139272,-10000.01,6.659e-05,2]
[404438464,1770141139341,-10000.01,6.659e-05,2]
[404438465,1770141139478,-10000.01,6.659e-05,2]
[404438466,1770141139612,-10000.01,6.659e-05,2]
[404438467,1770141139711,-10000.01,6.659e-05,2]
[404438468,1770141140216,-10000.01,6.659e-05,2]
[404438469,1770141140314,-10000.01,6.659e-05,2]
[404438470,1770141142361,-10000.01,6.659e-05,2]
[404438471,1770141142630,-10000.01,6.659e-05,2]
[404438472,1770141149315,-10000.01,6.659e-05,2]
[404438473,1770141152070,-10000.01,6.659e-05,2]
[404438474,1770141152099,-10000.01,6.659e-05,2]
[404438475,1770141152115,-10000.01,6.659e-05,2]
[404438476,1770141152145,-10000.01,6.659e-05,2]
[404438477,1770141152170,-10000.01,6.659e-05,2]
[404438478,1770141152394,500.0,6.658e-05,2]
[404438479,1770141152717,151.98024017,6.658e-05,2]
[404438480,1770141153450,500.0,6.658e-05,2]
[404438481,1770141153522,500.0,6.658e-05,2]
[404438482,1770141153571,500.0,6.658e-05,2]
[404438483,1770141153650,278.59318818,6.658e-05,2]
[404438484,1770141156070,-10000.01,6.659e-05,2]
[404438485,1770141156167,-10000.01,6.659e-05,2]
[404438486,1770141156310,-10000.01,6.659e-05,2]
[404438487,1770141156420,-10000.01,6.659e-05,2]
[404438488,1770141160437,-10000.01,6.659e-05,2]
[404438489,1770141160623,-10000.01,6.659e-05,2]
[404438490,1770141160754,-10000.01,6.659e-05,2]
[404438491,1770141160960,-10000.01,6.659e-05,2]
[404438492,1770141161071,-10000.01,6.659e-05,2]
[404438493,1770141161293,-10000.01,6.659e-05,2]
[404438494,1770141164954,260.93990397,6.658e-05,2]
[404438495,1770141164976,218.39038703,6.658e-05,2]
[404438496,1770141166004,-10000.01,6.659e-05,2]
[404438497,1770141166110,-10000.01,6.659e-05,2]
[404438498,1770141166217,-10000.01,6.659e-05,2]
[404438499,1770141166327,-10000.01,6.659e-05,2]
[404438500,1770141172826,-10000.01,6.659e-05,2]
[404438501,1770141173013,-10000.01,6.659e-05,2]
[404438502,1770141173132,-10000.01,6.659e-05,2]
[404438503,1770141173260,-10000.01,6.659e-05,2]
[404438504,1770141173440,-10000.01,6.659e-05,2]
[404438505,1770141173762,-10000.01,6.659e-05,2]
[404438506,1770141176432,-10000.01,6.659e-05,2]
[404438507,1770141176586,-10000.01,6.659e-05,2]
[404438508,1770141176831,-10000.01,6.659e-05,2]
[404438509,1770141176984,-10000.01,6.659e-05,2]
[404438510,1770141181909,300.0,6.658e-05,2]
[404438511,1770141182660,-10000.01,6.659e-05,2]
[404438513,1770141183045,-10000.01,6.659e-05,2]
[404438514,1770141183290,-10000.01,6.659e-05,2]
[404438516,1770141184998,-10000.01,6.659e-05,2]
[404438517,1770141185268,-10000.01,6.659e-05,2]
[404438518,1770141185407,-10000.01,6.659e-05,2]
[404438519,1770141188533,-10000.01,6.659e-05,2]
[404438520,1770141188664,-10000.01,6.659e-05,2]
[404438521,1770141188777,-10000.01,6.659e-05,2]
[404438522,1770141188899,-10000.01,6.659e-05,2]
[404438524,1770141195740,-10000.01,6.659e-05,2]
[404438525,1770141195951,-10000.01,6.659e-05,2]
[404438526,1770141196075,-10000.01,6.659e-05,2]
[404438527,1770141196443,-10000.01,6.659e-05,2]
[404438528,1770141196490,-10000.01,6.659e-05,2]
[404438531,1770141202112,-10000.01,6.659e-05,2]
[404438532,1770141202228,-10000.01,6.659e-05,2]
[404438533,1770141202453,-10000.01,6.659e-05,2]
[404438534,1770141202556,-10000.01,6.659e-05,2]
[404438535,1770141202677,-10000.01,6.659e-05,2]
[404438536,1770141207323,480.0,6.658e-05,2]
[404438537,1770141209318,-10000.01,6.659e-05,2]
[404438538,1770141209505,-10000.01,6.659e-05,2]
[404438539,1770141209634,-10000.01,6.659e-05,2]
[404438540,1770141209782,-10000.01,6.659e-05,2]
[404438541,1770141209892,-10000.01,6.659e-05,2]
[404438542,1770141216133,-10000.01,6.659e-05,2]
[404438543,1770141216253,-10000.01,6.659e-05,2]
[404438544,1770141216409,-10000.01,6.659e-05,2]
[404438545,1770141216514,-10000.01,6.659e-05,2]
[404438546,1770141216663,-10000.01,6.659e-05,2]
[404438547,1770141219899,-10000.01,6.659e-05,2]
[404438548,1770141220077,-10000.01,6.659e-05,2]
[404438549,1770141220194,-10000.01,6.659e-05,2]
[404438550,1770141220300,-10000.01,6.659e-05,2]
[404438551,1770141220422,-10000.01,6.659e-05,2]
[404438552,1770141226174,-10000.01,6.659e-05,2]
[404438553,1770141226397,-10000.01,6.659e-05,2]
[404438554,1770141226699,-10000.01,6.659e-05,2]
[404438555,1770141227937,-10000.01,6.659e-05,2]
[404438556,1770141229543,-10000.01,6.659e-05,2]
[404438557,1770141241578,300.0,6.658e-05,2]
[404438558,1770141242284,150.0,6.658e-05,2]
[404438560,1770141243041,300.0,6.658e-05,2]
[404438571,1770141259042,500.0,6.658e-05,2]
[404438572,1770141259100,500.0,6.658e-05,2]
[404438573,1770141259142,500.0,6.658e-05,2]
[404438574,1770141259211,500.0,6.658e-05,2]
[404438575,1770141259266,500.0,6.658e-05,2]